[Event "Dvorkovich Memorial Rapid 2018"]
[Site "Taganrog"]
[Date "2018.01.14"]
[Round "10"]
[White "Frolov, Andrey"]
[Black "Tsoi, Dmitry"]
[Result "0-1"]
[ECO "B06"]
[WhiteElo "2120"]
[BlackElo "2371"]
[Annotator "ChessBase"]
[PlyCount "162"]
[EventDate "2018.??.??"]
[EventType "swiss"]
[EventCountry "RUS"]
[SourceTitle "playchess.com"]
[Source "ChessBase"]
[SourceQuality "1"]
[TimeControl "900+10"]

1. e4 {[%emt 0:00:00]} g6 {[%emt 0:00:00]} 2. d4 {[%emt 0:00:00]} Bg7 {[%emt 0:00:00]} 3. Nc3 {[%emt 0:00:00]} d5 {[%emt 0:00:00]} 4. exd5 {[%emt 0:00:07]} Nf6 {[%emt 0:00:03]} 5. Bb5+ {[%emt 0:00:06]} Nbd7 {[%emt 0:00:01]} 6. Nf3 {[%emt 0:00:52]} O-O {[%emt 0:00:00]} 7. O-O {[%emt 0:00:11]} Nb6 {[%emt 0:00:03]} 8. h3 {[%emt 0:00:19]} Nfxd5 {[%emt 0:00:02]} 9. Ne4 {[%emt 0:00:31]} Bf5 {[%emt 0:00:16]} 10. Ng3 {[%emt 0:00:00]} Bd7 {[%emt 0:00:00]} 11. Bd3 {[%emt 0:00:33]} Nb4 {[%emt 0:00:00]} 12. Be2 {[%emt 0:00:08]} Bc6 {[%emt 0:00:21]} 13. a3 {[%emt 0:00:42]} N4d5 {[%emt 0:00:02]} 14. c4 {[%emt 0:00:50]} Ba4 {[%emt 0:00:01]} 15. Qd3 {[%emt 0:00:35]} Nf6 {[%emt 0:00:00]} 16. b3 {[%emt 0:00:05]} Be8 {[%emt 0:00:00]} 17. Bb2 {[%emt 0:00:30]} Nfd7 {[%emt 0:00:15]} 18. Rad1 {[%emt 0:00:23]} a5 {[%emt 0:00:02]} 19. Qc2 {[%emt 0:00:15]} Qb8 {[%emt 0:00:15]} 20. d5 {[%emt 0:00:55]} Bxb2 {[%emt 0:00:19]} 21. Qxb2 {[%emt 0:00:00]} c6 {[%emt 0:00:02]} 22. dxc6 {[%emt 0:00:21]} bxc6 {[%emt 0:00:00]} 23. Qd4 {[%emt 0:00:50]} c5 {[%emt 0:00:56]} 24. Qh4 {[%emt 0:00:00]} Nf6 {[%emt 0:00:01]} 25. Ng5 {[%emt 0:01:44]} Bc6 {[%emt 0:00:07]} 26. Rd3 {[%emt 0:00:32]} Kg7 {[%emt 0:02:21]} 27. Re3 {[%emt 0:04:06]} Ra7 {[%emt 0:00:00]} 28. Bd3 {[%emt 0:00:36]} Rd7 {[%emt 0:07:10]} 29. Nf5+ {[%emt 0:00:29]} gxf5 {[%emt 0:01:40]} 30. Bxf5 {[%emt 0:00:10]} Rd4 {[%emt 0:00:00]} 31. f4 {[%emt 0:00:11]} Rd2 {[%emt 0:00:35]} 32. Rg3 {[%emt 0:00:58]} Rxg2+ {[%emt 0:00:00]} 33. Rxg2 {[%emt 0:00:00]} Bxg2 {[%emt 0:00:00]} 34. Kxg2 {[%emt 0:01:09]} Rg8 {[%emt 0:00:14]} 35. Kh2 {[%emt 0:00:15]} Kf8 {[%emt 0:00:21]} 36. Nxh7+ {[%emt 0:01:11]} Nxh7 {[%emt 0:00:03]} 37. Qxh7 {[%emt 0:00:00]} a4 {[%emt 0:00:32]} 38. Qh6+ {[%emt 0:00:32]} Ke8 {[%emt 0:00:11]} 39. bxa4 {[%emt 0:00:15]} Nxc4 {[%emt 0:00:39]} 40. Qc6+ {[%emt 0:00:31]} Kf8 {[%emt 0:00:10]} 41. Qh6+ {[%emt 0:00:02]} Ke8 {[%emt 0:00:00]} 42. Bg4 {[%emt 0:00:13]} Qb2+ {[%emt 0:00:15]} 43. Kg1 {[%emt 0:00:15]} Rg6 {[%emt 0:00:13]} 44. Qh5 {[%emt 0:00:24]} Ne3 {[%emt 0:00:31]} 45. Rf2 {[%emt 0:00:00]} Qd4 {[%emt 0:00:46]} 46. Qe5 {[%emt 0:00:28]} Qxe5 {[%emt 0:00:13]} 47. fxe5 {[%emt 0:00:01]} Nxg4 {[%emt 0:00:02]} 48. hxg4 {[%emt 0:00:03]} Rxg4+ {[%emt 0:00:01]} 49. Kf1 {[%emt 0:00:00]} Rxa4 {[%emt 0:00:02]} 50. Rc2 {[%emt 0:00:18]} c4 {[%emt 0:00:00]} 51. Rc3 {[%emt 0:00:00]} Kd7 {[%emt 0:00:01]} 52. Ke2 {[%emt 0:00:07]} Ke6 {[%emt 0:00:00]} 53. Re3 {[%emt 0:00:00]} Ra5 {[%emt 0:00:05]} 54. Kf3 {[%emt 0:00:15]} Rxe5 {[%emt 0:00:03]} 55. Rc3 {[%emt 0:00:03]} Rb5 {[%emt 0:00:02]} 56. Ke4 {[%emt 0:00:08]} Rb3 {[%emt 0:00:14]} 57. Rxc4 {[%emt 0:00:01]} Rxa3 {[%emt 0:00:04]} 58. Rc6+ {[%emt 0:00:00]} Kd7 {[%emt 0:00:01]} 59. Rh6 {[%emt 0:00:03]} e6 {[%emt 0:00:02]} 60. Rh8 {[%emt 0:00:14]} Ke7 {[%emt 0:00:02]} 61. Rb8 {[%emt 0:00:00]} Ra4+ {[%emt 0:00:00]} 62. Ke3 {[%emt 0:00:10]} f5 {[%emt 0:00:03]} 63. Kf3 {[%emt 0:00:03]} Kf6 {[%emt 0:00:01]} 64. Ke3 {[%emt 0:00:02]} Ra3+ {[%emt 0:00:02]} 65. Kd4 {[%emt 0:00:02]} e5+ {[%emt 0:00:00]} 66. Kd5 {[%emt 0:00:05]} Rd3+ {[%emt 0:00:06]} 67. Kc4 {[%emt 0:00:01]} Rd4+ {[%emt 0:00:03]} 68. Kc3 {[%emt 0:00:02]} Rd7 {[%emt 0:00:06]} 69. Rg8 {[%emt 0:00:04]} f4 {[%emt 0:00:04]} 70. Rf8+ {[%emt 0:00:12]} Kg5 {[%emt 0:00:01]} 71. Kc2 {[%emt 0:00:03]} Kg4 {[%emt 0:00:02]} 72. Kc3 {[%emt 0:00:00]} Kf3 {[%emt 0:00:02]} 73. Kc4 {[%emt 0:00:07]} e4 {[%emt 0:00:00]} 74. Kc3 {[%emt 0:00:16]} e3 {[%emt 0:00:02]} 75. Re8 {[%emt 0:00:03]} Ke2 {[%emt 0:00:02]} 76. Rh8 {[%emt 0:00:06]} f3 {[%emt 0:00:01]} 77. Rf8 {[%emt 0:00:02]} f2 {[%emt 0:00:02]} 78. Kc2 {[%emt 0:00:24]} Kf1 {[%emt 0:00:03]} 79. Re8 {[%emt 0:00:12]} e2 {[%emt 0:00:01]} 80. Re6 {[%emt 0:00:03]} e1=Q {[%emt 0:00:03]} 81. Rxe1+ {[%emt 0:00:02]} fxe1=Q {[%emt 0:00:04]} 0-1

[Event "Dvorkovich Memorial Rapid 2018"]
[Site "Taganrog"]
[Date "2018.01.14"]
[Round "11"]
[White "Anikonov, Dmitry"]
[Black "Kim, Yana"]
[Result "1-0"]
[ECO "E90"]
[WhiteElo "2407"]
[BlackElo "2092"]
[Annotator "ChessBase"]
[PlyCount "103"]
[EventDate "2018.??.??"]
[EventType "swiss"]
[EventCountry "RUS"]
[SourceTitle "playchess.com"]
[Source "ChessBase"]
[SourceQuality "1"]
[TimeControl "900+10"]

1. d4 {[%emt 0:00:00]} Nf6 {[%emt 0:00:00]} 2. c4 {[%emt 0:00:00]} g6 {[%emt 0:00:00]} 3. Nc3 {[%emt 0:00:00]} Bg7 {[%emt 0:00:00]} 4. e4 {[%emt 0:00:00]} d6 {[%emt 0:00:00]} 5. Nf3 {[%emt 0:00:00]} O-O {[%emt 0:00:06]} 6. h3 {[%emt 0:00:00]} c5 {[%emt 0:00:13]} 7. d5 {[%emt 0:00:00]} e6 {[%emt 0:00:02]} 8. Bd3 {[%emt 0:00:00]} exd5 {[%emt 0:00:05]} 9. exd5 {[%emt 0:00:02]} Re8+ {[%emt 0:00:39]} 10. Be3 {[%emt 0:00:01]} Nbd7 {[%emt 0:01:31]} 11. O-O {[%emt 0:00:06]} Ne5 {[%emt 0:01:50]} 12. Nxe5 {[%emt 0:00:02]} Rxe5 {[%emt 0:00:04]} 13. Bf4 {[%emt 0:00:00]} Re8 {[%emt 0:00:10]} 14. Re1 {[%emt 0:00:47]} Bf8 {[%emt 0:01:31]} 15. Qf3 {[%emt 0:00:47]} Nh5 {[%emt 0:01:06]} 16. Rxe8 {[%emt 0:00:57]} Qxe8 {[%emt 0:00:02]} 17. Bd2 {[%emt 0:01:12]} f5 {[%emt 0:00:22]} 18. g4 {[%emt 0:00:29]} Ng7 {[%emt 0:01:01]} 19. Qg3 {[%emt 0:00:36]} Bd7 {[%emt 0:02:39]} 20. Re1 {[%emt 0:00:38]} Qf7 {[%emt 0:00:04]} 21. Bf4 {[%emt 0:00:11]} Re8 {[%emt 0:01:13]} 22. Rxe8 {[%emt 0:00:46]} Nxe8 {[%emt 0:00:30]} 23. f3 {[%emt 0:00:23]} Bg7 {[%emt 0:01:46]} 24. Kg2 {[%emt 0:00:36]} Qf6 {[%emt 0:01:02]} 25. Be3 {[%emt 0:00:00]} Qe7 {[%emt 0:00:32]} 26. Qf2 {[%emt 0:00:22]} Qe5 {[%emt 0:00:47]} 27. Qd2 {[%emt 0:00:02]} fxg4 {[%emt 0:00:38]} 28. hxg4 {[%emt 0:00:09]} Nf6 {[%emt 0:00:31]} 29. Bf4 {[%emt 0:00:18]} Qe7 {[%emt 0:00:01]} 30. Bc2 {[%emt 0:00:25]} Kf7 {[%emt 0:00:04]} 31. Bg3 {[%emt 0:00:17]} Ne8 {[%emt 0:00:27]} 32. Ne4 {[%emt 0:00:00]} Be5 {[%emt 0:00:13]} 33. Qh6 {[%emt 0:00:41]} Kg8 {[%emt 0:00:01]} 34. Bh4 {[%emt 0:01:29]} Qf8 {[%emt 0:00:54]} 35. Qg5 {[%emt 0:00:32]} Qf4 {[%emt 0:00:33]} 36. Qxf4 {[%emt 0:00:37]} Bxf4 {[%emt 0:00:01]} 37. Be1 {[%emt 0:00:10]} Be5 {[%emt 0:00:19]} 38. b4 {[%emt 0:00:00]} b6 {[%emt 0:00:00]} 39. Bd2 {[%emt 0:00:34]} Nf6 {[%emt 0:00:15]} 40. Nf2 {[%emt 0:00:07]} Kf7 {[%emt 0:00:15]} 41. b5 {[%emt 0:00:43]} Bd4 {[%emt 0:00:12]} 42. Nd3 {[%emt 0:00:24]} h5 {[%emt 0:00:13]} 43. g5 {[%emt 0:00:03]} Ng8 {[%emt 0:00:00]} 44. Bf4 {[%emt 0:00:26]} Ke7 {[%emt 0:00:13]} 45. Nc1 {[%emt 0:00:29]} Bf5 {[%emt 0:00:04]} 46. Bxf5 {[%emt 0:00:13]} gxf5 {[%emt 0:00:02]} 47. Ne2 {[%emt 0:00:00]} Bg7 {[%emt 0:00:06]} 48. Ng3 {[%emt 0:00:00]} Bf8 {[%emt 0:00:16]} 49. Nxf5+ {[%emt 0:00:09]} Kd7 {[%emt 0:00:00]} 50. Kh3 {[%emt 0:00:04]} Ne7 {[%emt 0:00:10]} 51. Nxe7 {[%emt 0:00:01]} Kxe7 {[%emt 0:00:00]} 52. Kh4 {[%emt 0:00:01]} 1-0

[Event "Dvorkovich Memorial Rapid 2018"]
[Site "Taganrog"]
[Date "2018.01.14"]
[Round "11"]
[White "Musalov, Ruslan"]
[Black "Gunchenko, Vadim"]
[Result "1/2-1/2"]
[ECO "A08"]
[WhiteElo "2338"]
[BlackElo "2338"]
[Annotator "ChessBase"]
[PlyCount "74"]
[EventDate "2018.??.??"]
[EventType "swiss"]
[EventCountry "RUS"]
[SourceTitle "playchess.com"]
[Source "ChessBase"]
[SourceQuality "1"]
[TimeControl "900+10"]

1. e4 {[%emt 0:00:12]} e6 {[%emt 0:00:00]} 2. d3 {[%emt 0:00:00]} d5 {[%emt 0:00:11]} 3. Nd2 {[%emt 0:00:05]} c5 {[%emt 0:00:08]} 4. g3 {[%emt 0:00:00]} Bd6 {[%emt 0:00:04]} 5. Bg2 {[%emt 0:00:06]} Ne7 {[%emt 0:00:04]} 6. Ngf3 {[%emt 0:00:17]} Nbc6 {[%emt 0:00:09]} 7. O-O {[%emt 0:01:54]} b6 {[%emt 0:00:18]} 8. Re1 {[%emt 0:00:12]} Bb7 {[%emt 0:00:40]} 9. c3 {[%emt 0:04:02]} Bc7 {[%emt 0:00:33]} 10. Ng5 {[%emt 0:01:06]} h6 {[%emt 0:01:43]} 11. Qh5 {[%emt 0:00:10]} g6 {[%emt 0:00:00]} 12. Qh3 {[%emt 0:00:09]} Ne5 {[%emt 0:00:02]} 13. exd5 {[%emt 0:01:44]} Bxd5 {[%emt 0:00:15]} 14. Nge4 {[%emt 0:05:57]} Nxd3 {[%emt 0:02:22]} 15. Nf6+ {[%emt 0:00:25]} Kf8 {[%emt 0:00:02]} 16. Nxd5 {[%emt 0:00:22]} exd5 {[%emt 0:01:01]} 17. Rd1 {[%emt 0:00:16]} Nxc1 {[%emt 0:01:14]} 18. Raxc1 {[%emt 0:00:04]} Qc8 {[%emt 0:00:41]} 19. Qh4 {[%emt 0:00:38]} Qf5 {[%emt 0:01:03]} 20. Nf1 {[%emt 0:00:03]} Rd8 {[%emt 0:00:36]} 21. Ne3 {[%emt 0:00:17]} Qg5 {[%emt 0:00:00]} 22. Qxg5 {[%emt 0:00:12]} hxg5 {[%emt 0:00:08]} 23. Nxd5 {[%emt 0:00:06]} Nxd5 {[%emt 0:00:15]} 24. Rxd5 {[%emt 0:00:07]} Rxd5 {[%emt 0:00:12]} 25. Bxd5 {[%emt 0:00:11]} g4 {[%emt 0:01:29]} 26. Bc4 {[%emt 0:00:26]} Rh5 {[%emt 0:03:06]} 27. Be2 {[%emt 0:00:03]} f5 {[%emt 0:00:13]} 28. Rd1 {[%emt 0:00:21]} Rh7 {[%emt 0:00:28]} 29. Bc4 {[%emt 0:00:04]} Re7 {[%emt 0:00:23]} 30. Kg2 {[%emt 0:00:02]} Kg7 {[%emt 0:00:07]} 31. f3 {[%emt 0:00:08]} gxf3+ {[%emt 0:00:07]} 32. Kxf3 {[%emt 0:00:01]} Kf6 {[%emt 0:00:03]} 33. Rd2 {[%emt 0:00:25]} g5 {[%emt 0:00:19]} 34. Rd5 {[%emt 0:00:18]} f4 {[%emt 0:00:53]} 35. g4 {[%emt 0:00:13]} Re5 {[%emt 0:00:41]} 36. Rxe5 {[%emt 0:00:10]} Kxe5 {[%emt 0:00:06]} 37. Bd3 {[%emt 0:00:05]} Bd8 {[%emt 0:00:03]} 1/2-1/2

[Event "Dvorkovich Memorial Rapid 2018"]
[Site "Taganrog"]
[Date "2018.01.14"]
[Round "11"]
[White "Chernyavsky, Alexander"]
[Black "Ivlev, Aleksey"]
[Result "1-0"]
[ECO "D45"]
[WhiteElo "2326"]
[BlackElo "2300"]
[Annotator "ChessBase"]
[PlyCount "87"]
[EventDate "2018.??.??"]
[EventType "swiss"]
[EventCountry "RUS"]
[SourceTitle "playchess.com"]
[Source "ChessBase"]
[SourceQuality "1"]
[TimeControl "900+10"]

1. c4 {[%emt 0:00:00]} c6 {[%emt 0:00:00]} 2. Nf3 {[%emt 0:00:00]} d5 {[%emt 0:00:00]} 3. e3 {[%emt 0:00:00]} Nf6 {[%emt 0:00:00]} 4. Nc3 {[%emt 0:00:00]} e6 {[%emt 0:00:00]} 5. b3 {[%emt 0:00:00]} Nbd7 {[%emt 0:00:03]} 6. Bb2 {[%emt 0:00:00]} Bd6 {[%emt 0:00:01]} 7. d4 {[%emt 0:00:00]} O-O {[%emt 0:00:12]} 8. Bd3 {[%emt 0:00:06]} b6 {[%emt 0:00:04]} 9. Qc2 {[%emt 0:00:27]} Bb7 {[%emt 0:00:21]} 10. O-O {[%emt 0:02:13]} Rc8 {[%emt 0:00:23]} 11. Rac1 {[%emt 0:00:11]} dxc4 {[%emt 0:00:14]} 12. bxc4 {[%emt 0:00:12]} c5 {[%emt 0:00:07]} 13. d5 {[%emt 0:00:13]} exd5 {[%emt 0:00:10]} 14. Nxd5 {[%emt 0:00:18]} Nxd5 {[%emt 0:02:58]} 15. Bxh7+ {[%emt 0:00:36]} Kh8 {[%emt 0:00:13]} 16. cxd5 {[%emt 0:00:10]} Bxd5 {[%emt 0:00:18]} 17. Rfd1 {[%emt 0:01:36]} Bxf3 {[%emt 0:02:35]} 18. gxf3 {[%emt 0:03:00]} Qg5+ {[%emt 0:00:14]} 19. Kf1 {[%emt 0:00:04]} Qh6 {[%emt 0:03:37]} 20. Bf5 {[%emt 0:00:28]} Rcd8 {[%emt 0:00:06]} 21. Rxd6 {[%emt 0:02:28]} Qxd6 {[%emt 0:01:04]} 22. Rd1 {[%emt 0:01:24]} Qe7 {[%emt 0:00:14]} 23. Qa4 {[%emt 0:00:07]} Ne5 {[%emt 0:01:11]} 24. Rxd8 {[%emt 0:00:00]} Rxd8 {[%emt 0:00:58]} 25. Bxe5 {[%emt 0:00:09]} Rd5 {[%emt 0:00:12]} 26. f4 {[%emt 0:00:19]} f6 {[%emt 0:00:11]} 27. Qc6 {[%emt 0:00:51]} Rd1+ {[%emt 0:00:30]} 28. Ke2 {[%emt 0:01:49]} Rd8 {[%emt 0:00:45]} 29. Bc7 {[%emt 0:00:52]} Rg8 {[%emt 0:01:21]} 30. Bg6 {[%emt 0:00:59]} Rc8 {[%emt 0:00:18]} 31. Qd5 {[%emt 0:00:11]} Qxc7 {[%emt 0:00:11]} 32. Qh5+ {[%emt 0:00:01]} Kg8 {[%emt 0:00:01]} 33. Qh7+ {[%emt 0:00:21]} Kf8 {[%emt 0:00:10]} 34. Qh8+ {[%emt 0:00:18]} Ke7 {[%emt 0:00:10]} 35. Qxg7+ {[%emt 0:00:02]} Ke6 {[%emt 0:00:13]} 36. f5+ {[%emt 0:00:11]} Kd5 {[%emt 0:00:48]} 37. Qxf6 {[%emt 0:00:13]} Qd6 {[%emt 0:00:11]} 38. Qf7+ {[%emt 0:00:19]} Kc6 {[%emt 0:00:33]} 39. f6 {[%emt 0:00:16]} Qe5 {[%emt 0:00:10]} 40. Qe7 {[%emt 0:00:10]} Qb2+ {[%emt 0:00:10]} 41. Kf3 {[%emt 0:00:10]} c4 {[%emt 0:00:10]} 42. Be4+ {[%emt 0:00:10]} Kb5 {[%emt 0:00:10]} 43. Qd7+ {[%emt 0:00:10]} Ka5 {[%emt 0:00:10]} 44. Qxc8 {[%emt 0:00:00]} 1-0

[Event "Dvorkovich Memorial Rapid 2018"]
[Site "Taganrog"]
[Date "2018.01.14"]
[Round "11"]
[White "Murzin, Volodar"]
[Black "Getman, Tatyana"]
[Result "1/2-1/2"]
[ECO "C00"]
[WhiteElo "2268"]
[BlackElo "2106"]
[Annotator "ChessBase"]
[PlyCount "63"]
[EventDate "2018.??.??"]
[EventType "swiss"]
[EventCountry "RUS"]
[SourceTitle "playchess.com"]
[Source "ChessBase"]
[SourceQuality "1"]
[TimeControl "900+10"]

1. e4 {[%emt 0:00:00]} e6 {[%emt 0:00:00]} 2. d3 {[%emt 0:00:00]} d5 {[%emt 0:00:00]} 3. Nd2 {[%emt 0:00:00]} Nf6 {[%emt 0:00:00]} 4. Ngf3 {[%emt 0:00:00]} c5 {[%emt 0:00:00]} 5. g3 {[%emt 0:00:00]} Nc6 {[%emt 0:00:00]} 6. Bg2 {[%emt 0:00:00]} Be7 {[%emt 0:00:10]} 7. O-O {[%emt 0:00:08]} b6 {[%emt 0:00:13]} 8. Re1 {[%emt 0:00:09]} Bb7 {[%emt 0:00:05]} 9. exd5 {[%emt 0:00:30]} exd5 {[%emt 0:00:07]} 10. Nf1 {[%emt 0:00:38]} O-O {[%emt 0:00:08]} 11. Ne3 {[%emt 0:00:32]} Qd7 {[%emt 0:00:16]} 12. d4 {[%emt 0:00:13]} cxd4 {[%emt 0:04:01]} 13. Nxd4 {[%emt 0:04:39]} Nxd4 {[%emt 0:00:00]} 14. Qxd4 {[%emt 0:00:01]} Bc5 {[%emt 0:00:00]} 15. Qf4 {[%emt 0:00:15]} Rfe8 {[%emt 0:03:23]} 16. Bd2 {[%emt 0:00:08]} Ne4 {[%emt 0:00:15]} 17. Red1 {[%emt 0:03:42]} Nxd2 {[%emt 0:00:35]} 18. Rxd2 {[%emt 0:00:03]} Bxe3 {[%emt 0:00:21]} 19. fxe3 {[%emt 0:00:00]} Qe6 {[%emt 0:01:08]} 20. Rad1 {[%emt 0:00:20]} Qxe3+ {[%emt 0:01:53]} 21. Qxe3 {[%emt 0:00:02]} Rxe3 {[%emt 0:00:11]} 22. Bxd5 {[%emt 0:00:02]} Bxd5 {[%emt 0:00:03]} 23. Rxd5 {[%emt 0:00:00]} g6 {[%emt 0:00:14]} 24. Kf2 {[%emt 0:00:13]} Rae8 {[%emt 0:00:15]} 25. R1d2 {[%emt 0:00:05]} R8e7 {[%emt 0:00:04]} 26. c4 {[%emt 0:00:21]} R3e6 {[%emt 0:00:41]} 27. Rd7 {[%emt 0:00:20]} Kg7 {[%emt 0:00:11]} 28. Rxe7 {[%emt 0:00:08]} Rxe7 {[%emt 0:00:11]} 29. Rd6 {[%emt 0:00:01]} Kh6 {[%emt 0:00:38]} 30. Rd5 {[%emt 0:00:33]} Kg7 {[%emt 0:00:07]} 31. a4 {[%emt 0:00:06]} Kf6 {[%emt 0:00:13]} 32. Kf3 {[%emt 0:00:14]} 1/2-1/2

[Event "Dvorkovich Memorial Rapid 2018"]
[Site "Taganrog"]
[Date "2018.01.14"]
[Round "11"]
[White "Garkushin, Artem"]
[Black "Oganian, Roman"]
[Result "0-1"]
[ECO "A48"]
[WhiteElo "2088"]
[BlackElo "2215"]
[Annotator "ChessBase"]
[PlyCount "59"]
[EventDate "2018.??.??"]
[EventType "swiss"]
[EventCountry "RUS"]
[SourceTitle "playchess.com"]
[Source "ChessBase"]
[SourceQuality "1"]
[TimeControl "900+10"]

1. d4 {[%emt 0:00:00]} Nf6 {[%emt 0:00:00]} 2. Nf3 {[%emt 0:00:00]} g6 {[%emt 0:00:00]} 3. Bg5 {[%emt 0:00:12]} Bg7 {[%emt 0:00:28]} 4. e3 {[%emt 0:00:09]} h6 {[%emt 0:00:08]} 5. Bh4 {[%emt 0:00:09]} O-O {[%emt 0:00:00]} 6. Be2 {[%emt 0:00:02]} d6 {[%emt 0:00:17]} 7. h3 {[%emt 0:00:06]} Nbd7 {[%emt 0:00:26]} 8. O-O {[%emt 0:00:04]} e5 {[%emt 0:00:32]} 9. c4 {[%emt 0:00:09]} g5 {[%emt 0:01:57]} 10. Bg3 {[%emt 0:00:04]} Ne4 {[%emt 0:01:23]} 11. Bh2 {[%emt 0:00:21]} f5 {[%emt 0:00:25]} 12. Nfd2 {[%emt 0:00:52]} Nxd2 {[%emt 0:02:00]} 13. Qxd2 {[%emt 0:00:27]} f4 {[%emt 0:00:27]} 14. Nc3 {[%emt 0:00:20]} c6 {[%emt 0:01:39]} 15. dxe5 {[%emt 0:01:03]} dxe5 {[%emt 0:00:18]} 16. Rad1 {[%emt 0:00:24]} Qe7 {[%emt 0:01:04]} 17. exf4 {[%emt 0:00:54]} exf4 {[%emt 0:00:14]} 18. Bd3 {[%emt 0:01:40]} Ne5 {[%emt 0:01:03]} 19. Bc2 {[%emt 0:00:43]} Bxh3 {[%emt 0:00:27]} 20. Rfe1 {[%emt 0:00:40]} Bg4 {[%emt 0:00:24]} 21. f3 {[%emt 0:00:56]} Qc5+ {[%emt 0:00:14]} 22. Kh1 {[%emt 0:00:07]} Nxf3 {[%emt 0:01:45]} 23. Qd3 {[%emt 0:01:00]} Bf5 {[%emt 0:00:01]} 24. Ne4 {[%emt 0:00:18]} Nxe1 {[%emt 0:00:19]} 25. Rxe1 {[%emt 0:00:53]} Rae8 {[%emt 0:00:30]} 26. Bg1 {[%emt 0:00:08]} Qe5 {[%emt 0:00:57]} 27. Qd2 {[%emt 0:03:37]} g4 {[%emt 0:00:31]} 28. Bc5 {[%emt 0:00:13]} Bxe4 {[%emt 0:01:20]} 29. Rxe4 {[%emt 0:00:31]} Qh5+ {[%emt 0:00:16]} 30. Kg1 {[%emt 0:00:12]} 0-1

[Event "Dvorkovich Memorial Rapid 2018"]
[Site "Taganrog"]
[Date "2018.01.14"]
[Round "11"]
[White "Bogdanov, Rodion"]
[Black "Tomilova, Elena"]
[Result "0-1"]
[ECO "A12"]
[WhiteElo "1879"]
[BlackElo "2331"]
[Annotator "ChessBase"]
[PlyCount "144"]
[EventDate "2018.??.??"]
[EventType "swiss"]
[EventCountry "RUS"]
[SourceTitle "playchess.com"]
[Source "ChessBase"]
[SourceQuality "1"]
[TimeControl "900+10"]

1. Nf3 {[%emt 0:00:00]} d5 {[%emt 0:00:11]} 2. c4 {[%emt 0:00:04]} c6 {[%emt 0:00:00]} 3. b3 {[%emt 0:00:07]} Bf5 {[%emt 0:00:05]} 4. Bb2 {[%emt 0:00:03]} e6 {[%emt 0:00:04]} 5. g3 {[%emt 0:00:01]} Nf6 {[%emt 0:00:06]} 6. Nh4 {[%emt 0:00:02]} Bg6 {[%emt 0:00:08]} 7. Bg2 {[%emt 0:00:20]} Nbd7 {[%emt 0:00:07]} 8. Nxg6 {[%emt 0:00:11]} hxg6 {[%emt 0:00:02]} 9. Qc2 {[%emt 0:00:09]} Bd6 {[%emt 0:00:48]} 10. Nc3 {[%emt 0:00:19]} Qe7 {[%emt 0:00:13]} 11. a3 {[%emt 0:00:09]} a5 {[%emt 0:00:09]} 12. O-O {[%emt 0:00:18]} O-O {[%emt 0:01:01]} 13. d4 {[%emt 0:00:23]} Rac8 {[%emt 0:00:32]} 14. c5 {[%emt 0:00:03]} Bc7 {[%emt 0:00:08]} 15. b4 {[%emt 0:00:02]} e5 {[%emt 0:00:16]} 16. e3 {[%emt 0:00:06]} b5 {[%emt 0:02:03]} 17. cxb6 {[%emt 0:00:43]} Nxb6 {[%emt 0:00:13]} 18. dxe5 {[%emt 0:00:02]} Bxe5 {[%emt 0:00:09]} 19. Na4 {[%emt 0:00:57]} Bxb2 {[%emt 0:01:15]} 20. Nxb6 {[%emt 0:00:04]} Bxa1 {[%emt 0:00:01]} 21. Nxc8 {[%emt 0:00:01]} Rxc8 {[%emt 0:00:02]} 22. Rxa1 {[%emt 0:00:05]} axb4 {[%emt 0:00:04]} 23. axb4 {[%emt 0:00:11]} Qxb4 {[%emt 0:00:05]} 24. Rb1 {[%emt 0:00:16]} Qa5 {[%emt 0:00:12]} 25. h3 {[%emt 0:00:05]} c5 {[%emt 0:00:29]} 26. Kh2 {[%emt 0:00:04]} c4 {[%emt 0:00:25]} 27. Rb7 {[%emt 0:00:07]} Qa6 {[%emt 0:00:14]} 28. Rb1 {[%emt 0:00:51]} Qd6 {[%emt 0:01:40]} 29. Qc3 {[%emt 0:00:08]} Ne4 {[%emt 0:00:47]} 30. Qd4 {[%emt 0:01:53]} Qc5 {[%emt 0:00:20]} 31. Qe5 {[%emt 0:01:20]} f6 {[%emt 0:01:21]} 32. Qe6+ {[%emt 0:00:05]} Kh7 {[%emt 0:00:02]} 33. Bxe4 {[%emt 0:00:06]} dxe4 {[%emt 0:00:04]} 34. Qxe4 {[%emt 0:00:01]} c3 {[%emt 0:00:06]} 35. Rc1 {[%emt 0:01:05]} c2 {[%emt 0:00:19]} 36. Kg2 {[%emt 0:00:19]} f5 {[%emt 0:00:21]} 37. Qd3 {[%emt 0:00:16]} Qc6+ {[%emt 0:00:35]} 38. f3 {[%emt 0:00:02]} Qc5 {[%emt 0:00:44]} 39. h4 {[%emt 0:00:13]} Rc6 {[%emt 0:00:07]} 40. Kh3 {[%emt 0:00:15]} Rc7 {[%emt 0:01:42]} 41. Kg2 {[%emt 0:00:04]} Qc6 {[%emt 0:00:02]} 42. Kf2 {[%emt 0:00:07]} Qa4 {[%emt 0:00:14]} 43. h5 {[%emt 0:00:09]} gxh5 {[%emt 0:00:24]} 44. Qxf5+ {[%emt 0:00:02]} g6 {[%emt 0:00:01]} 45. Qd3 {[%emt 0:00:08]} Rc4 {[%emt 0:00:20]} 46. e4 {[%emt 0:00:29]} Qc6 {[%emt 0:00:25]} 47. Kg2 {[%emt 0:00:18]} Rc3 {[%emt 0:00:10]} 48. Qd4 {[%emt 0:00:02]} Qc7 {[%emt 0:01:02]} 49. Qd5 {[%emt 0:01:46]} Qa7 {[%emt 0:00:27]} 50. Qd2 {[%emt 0:00:18]} Qc7 {[%emt 0:00:31]} 51. Qd5 {[%emt 0:00:03]} Rc5 {[%emt 0:00:06]} 52. Qd3 {[%emt 0:00:19]} Rg5 {[%emt 0:00:38]} 53. f4 {[%emt 0:01:29]} Qxf4 {[%emt 0:00:09]} 54. Rxc2 {[%emt 0:00:01]} Rxg3+ {[%emt 0:00:12]} 55. Qxg3 {[%emt 0:00:05]} Qxe4+ {[%emt 0:00:02]} 56. Qf3 {[%emt 0:00:58]} Qxc2+ {[%emt 0:00:02]} 57. Kg3 {[%emt 0:00:02]} Qc7+ {[%emt 0:00:24]} 58. Kh4 {[%emt 0:00:44]} Qe7+ {[%emt 0:00:09]} 59. Kh3 {[%emt 0:00:04]} Kh6 {[%emt 0:00:13]} 60. Qf4+ {[%emt 0:00:10]} g5 {[%emt 0:00:03]} 61. Qd4 {[%emt 0:00:01]} Qe6+ {[%emt 0:00:38]} 62. Kh2 {[%emt 0:00:08]} h4 {[%emt 0:00:12]} 63. Qh8+ {[%emt 0:00:22]} Kg6 {[%emt 0:00:01]} 64. Qd4 {[%emt 0:00:07]} Qe2+ {[%emt 0:00:14]} 65. Kh3 {[%emt 0:00:34]} Qf1+ {[%emt 0:00:17]} 66. Kh2 {[%emt 0:00:13]} Qf4+ {[%emt 0:00:04]} 67. Qxf4 {[%emt 0:00:06]} gxf4 {[%emt 0:00:02]} 68. Kg2 {[%emt 0:00:01]} Kg5 {[%emt 0:00:12]} 69. Kh3 {[%emt 0:00:09]} f3 {[%emt 0:00:04]} 70. Kh2 {[%emt 0:00:01]} Kf4 {[%emt 0:00:03]} 71. Kg1 {[%emt 0:00:03]} Ke3 {[%emt 0:00:03]} 72. Kh2 {[%emt 0:00:18]} f2 {[%emt 0:00:07]} 0-1